Cogmind - Beta 17 @@@ ROGUE MODE // 2026.07.05 @ 17:16:10 Player: blorx Result: Destroyed by S1-DG3(R) with Subdweller Shrapnel Launcher Performance ------------- Evolutions (0) 0 Regions Visited (3) 600 Robots Destroyed (21) 105 Value Destroyed (344) 344 Prototype IDs (0) 0 Alien Tech Used (0) 0 Bonus (0) 0 TOTAL SCORE: 1049 Bonus ------- None Cogmind --------- Core Integrity 0/250 Matter 300/300 Energy 100/100 System Corruption 3% Temperature Cool (0) Movement Rolling (175) Ox5 Location -10/Subcaves Parts ------- > --- POWER (1) -------- (None) > --- PROPULSION (2) --- Compact Wheel > --- UTILITY (2) ------ Huge Storage Unit Seismic Detector > --- WEAPON (2) ------- (None) > --- INVENTORY (25) --- Light Ion Engine Light Ion Engine Light Ion Engine Light Treads Wheel Wheel Compact Wheel Heat Sink Small Storage Unit Large Storage Unit Medium Matter Pod (100) Sensor Array Improved Terrain Scanner Power Shielding Light Armor Plating Light Armor Plating Light Armor Plating Light Armor Plating Field Recycling Unit (0) Heavy EM Pulse Gun Medium Laser Medium Laser Assault Rifle Mining Laser Hammer Peak State ------------ > --- POWER ------------ Light Ion Engine > --- PROPULSION ------- Compact Wheel Compact Wheel > --- UTILITY ---------- Huge Storage Unit Seismic Detector > --- WEAPON ----------- Heavy EM Pulse Gun Heavy EM Pulse Gun > --- INVENTORY -------- Light Ion Engine Light Ion Engine Wheel Wheel Compact Wheel Small Storage Unit Small Matter Pod Improved Terrain Scanner Light Armor Plating Light Armor Plating Light Armor Plating Light Armor Plating Field Recycling Unit Assault Rifle Assault Rifle Light Assault Rifle Grenade Launcher Mining Laser [Rating: 11] Favorites ----------- Power Light Ion Engine Engine Light Ion Engine Propulsion Compact Wheel Treads Light Treads Wheel Compact Wheel Utility Huge Storage Unit Device Seismic Detector Storage Huge Storage Unit Processor Signal Interpreter Weapon Heavy EM Pulse Gun Energy Gun Heavy EM Pulse Gun Ballistic Gun Assault Rifle Launcher Grenade Launcher Special Weapon Mining Laser Build | -11 -10 -10 -10 ------- Run | Yrd Mat Min Sub Slots Evolved . | . . . . Power . | . . . . Propulsion . | . . . . Utility . | . . . . Weapon . | . . . . Parts Attached 28 | 9 18 . 1 Power 3 | 1 1 . 1 Engine 3 | 1 1 . 1 Core . | . . . . Reactor . | . . . . Propulsion 11 | 3 8 . . Treads 4 | 2 2 . . Leg . | . . . . Wheel 7 | 1 6 . . Hover . | . . . . Flight . | . . . . Utility 5 | 3 2 . . Device 2 | 2 . . . Storage 2 | 1 1 . . Processor 1 | . 1 . . Hackware . | . . . . Protection . | . . . . Artifact . | . . . . Weapon 9 | 2 7 . . Energy Gun 2 | . 2 . . Energy Cannon . | . . . . Ballistic Gun 5 | 2 3 . . Ballistic Cannon . | . . . . Launcher 1 | . 1 . . Special Weapon 1 | . 1 . . Impact Weapon . | . . . . Slashing Weapon . | . . . . Piercing Weapon . | . . . . Special Melee Weapon . | . . . . Unidentified Prototypes . | . . . . Parts Lost 5 | . 1 . 4 Power 2 | . 1 . 1 Propulsion 1 | . . . 1 Utility . | . . . . Weapon 2 | . . . 2 Highest Loss Streak 4 | . 1 . 4 To Critical Strikes . | . . . . Average Backups 18 | 4 16 25 24 Power 1 | . 1 2 2 Propulsion 3 | 1 3 4 4 Utility 8 | . 7 13 12 Weapon 4 | 1 4 5 6 Tool/Special . | . . . . Unused Backups 25 | 3 4 1 17 Power 4 | 1 1 . 2 Propulsion 3 | . 1 . 2 Utility 14 | 2 1 1 10 Weapon 4 | . 1 . 3 Tool/Special . | . . . . Average Slot Usage (%) 99 | . 99 100 98 Engine 13 | . 13 14 13 Treads 6 | . 10 . . Wheel 21 | . 17 28 28 Device 5 | . 6 . 12 Storage 14 | . 14 14 14 Processor 8 | . 7 14 1 Energy Gun 15 | . 14 19 14 Ballistic Gun 7 | . 12 . . Launcher 4 | . 1 8 13 Peak Build Rating 11 | 9 11 11 10 Average Rating 9 | 6 9 10 9 On Entrance 7 | . 7 11 10 Avg Prop Armor Cover (%) . | . . . . Naked Turns . | . . . . Heaviest Build 90 | 12 90 89 90 Greatest Support 40 | 40 40 32 32 Greatest Overweight (x) 2 | . 2 2 2 Average Overweight (x) 1 | . 1 2 2 Largest Inventory Capacity 25 | 8 25 25 25 Average Capacity 19 | 7 17 25 25 Most Carried 25 | 8 25 25 25 Average Carried 18 | 4 16 25 24 Final Capacity 25 | 8 25 25 25 Final Carried 25 | 6 25 25 25 Class Distribution -------------------- 100% | Mutant Dominant Class ---------------- Mutant | -10/Materials Mutant | -10/Mines Mutant | -10/Subcaves Resources | -11 -10 -10 -10 ----------- Run | Yrd Mat Min Sub Matter Collected 879 | 334 438 18 89 Remotely . | . . . . Salvage Created 644 | 148 400 . 96 Parts 46 | 17 26 . 3 Haulers Intercepted 1 | . 1 . . Recyclers Shooed 2 | 2 . . . Parts Field Recycled . | . . . . Retrieved Matter . | . . . . Parts Self-Destructed 13 | . . . 13 Prevented . | . . . . Parts Restored . | . . . . Kills | -11 -10 -10 -10 ------- Run | Yrd Mat Min Sub Combat Hostiles Destroyed 9 | . 6 . 3 Guns 2 | . 1 . 1 AOE 7 | . 5 . 2 Classes Destroyed 9 | 3 4 . 2 Worker 4 | 2 2 . . Tunneler 2 | 2 . . . Hauler 1 | . 1 . . Recycler 3 | 1 2 . . Watcher 2 | . 2 . . Swarmer 3 | . 3 . . Grunt 4 | . 3 . 1 Sentry 1 | . . . 1 Subdweller 1 | . . . 1 Best Kill Streak 3 | 2 3 . 2 Combat Bots Only 3 | . 3 . 2 Max Kills in Single Turn 3 | 1 3 . 1 Gunslinging . | . . . . Exploded 2 | . 2 . 1 Melee . | . . . . Uniques/NPCs Destroyed . | . . . . Combat | -11 -10 -10 -10 -------- Run | Yrd Mat Min Sub Hostile Shots Fired 34 | . 23 . 11 Missed 11 | . 7 . 4 Hits 23 | . 16 . 7 Projectile 23 | . 16 . 7 AOE 7 | . . . 7 Damage Taken 654 | . 246 . 408 Core 273 | . 30 . 243 Absorbed by Shields . | . . . . Core Remaining (%) 100 | 100 . . . Volleys Fired 48 | 11 30 . 7 Largest 2 | 2 2 . 2 Hottest 90 | 40 90 . 75 Shots Fired 93 | 22 60 . 11 Gun 82 | 22 54 . 6 Cannon . | . . . . Launcher 11 | . 6 . 5 Special . | . . . . Kinetic 63 | 22 41 . . Thermal . | . . . . Explosive 11 | . 6 . 5 Electromagnetic 19 | . 13 . 6 Robot Hit Streak 8 | 3 8 . 1 Robot Miss Streak 2 | 2 2 . 1 Penetration Max . | . . . . Secondary Targets . | . . . . Shots Hit Robots 47 | 9 36 . 2 Core Hits 36 | 6 23 . 7 Critical Kills . | . . . . Critical Parts Destroyed . | . . . . Critical Strikes . | . . . . Melee Attacks . | . . . . Impact . | . . . . Slashing . | . . . . Piercing . | . . . . Sneak Attacks . | . . . . Combat Hostiles . | . . . . Follow-up Attacks . | . . . . Damage Inflicted 1014 | 106 674 . 234 Guns 526 | 106 405 . 15 Cannons . | . . . . Explosions 488 | . 269 . 219 Melee . | . . . . Ramming . | . . . . Kinetic 435 | 106 329 . . Thermal . | . . . . Explosive 488 | . 269 . 219 Electromagnetic 91 | . 76 . 15 Impact . | . . . . Slashing . | . . . . Piercing . | . . . . Highest Corruption 3 | . 3 3 3 Average Corruption 2 | . 2 3 3 Corruption Purged . | . . . . Corruption Blocked . | . . . . Effects 23 | . 7 12 4 Message Errors 5 | . 2 2 1 Matter Fused 7 | . 2 4 1 Heat Flow Errors 1 | . . 1 . Energy Discharges 2 | . . 2 . Data Loss (minor) 6 | . 2 3 1 Misfires 2 | . 1 . 1 Overload Shots . | . . . . Overflow Damage . | . . . . Projectiles . | . . . . Explosions . | . . . . Melee . | . . . . Knockbacks . | . . . . Impact . | . . . . Kinetic . | . . . . Secondary . | . . . . Self-Inflicted Damage 43 | . 43 . . Shots 2 | . 2 . . Rammed . | . . . . Targets Rammed . | . . . . Kicked . | . . . . Crushed . | . . . . Highest Temperature 274 | . 60 274 . Average Temperature 58 | . 22 144 . Received Heat Transfer 69 | . 69 . . Siege Activations . | . . . . Martial Activations . | . . . . Shielding Activations . | . . . . Robots Disrupted . | . . . . Combat Hostiles . | . . . . Robots Corrupted . | . . . . Combat Hostiles . | . . . . Parts Fried . | . . . . Impact Corruptions . | . . . . Robots Melted . | . . . . Combat Hostiles . | . . . . Parts Melted . | . . . . Heat Transferred . | . . . . Parts Sabotaged . | . . . . Parts Stolen . | . . . . Parts Stripped . | . . . . Power Chain Reactions . | . . . . Alert | -11 -10 -10 -10 ------- Run | Yrd Mat Min Sub Maximum Alert Level . | . . . . Low Security (%) 100 | 100 100 100 . Level 1 . | . . . . Level 2 . | . . . . Level 3 . | . . . . Level 4 . | . . . . Level 5 . | . . . . High Security . | . . . . Max Security . | . . . . Peak Influence 79 | 10 79 . . Initial . | . . . . Average 9 | 1 14 . . Influence Increases 340 | 25 275 . 40 Destroy 0b10 Robot/C 160 | . 120 . 40 Destroy 0b10 Robot/NC 60 | 25 35 . . Destroy Leader 26 | . 26 . . Successful Hack 28 | . 28 . . Disable Machine 15 | . 15 . . Destroy Structure 36 | . 36 . . Partial Spotted 15 | . 15 . . Influence Decreases 340 | 25 275 . 40 Time Decay 330 | 25 265 . 40 Lost Part 10 | . 10 . . Squads Dispatched 2 | . 2 . . Investigation 2 | . 2 . . Extermination . | . . . . Reinforcement . | . . . . Assault . | . . . . Garrison . | . . . . Intercept . | . . . . Searches Triggered . | . . . . Construction Impeded . | . . . . Haulers Reinforced . | . . . . Active Scanning Responses . | . . . . Cargo Convoy Interrupts . | . . . . Stealth | -11 -10 -10 -10 --------- Run | Yrd Mat Min Sub Distress Signals 1 | . 1 . . Communications Jammed . | . . . . Distress Signals . | . . . . Times Spotted 17 | . 12 . 5 Peak Tracking Total 4 | . 4 . 2 Tactical Retreats . | . . . . Traps | -11 -10 -10 -10 ------- Run | Yrd Mat Min Sub Traps Triggered 2 | . 2 . . Indirectly . | . . . . Trap Hack Attempts . | . . . . Triggered . | . . . . Disarmed . | . . . . Reprogrammed . | . . . . Reused . | . . . . Traps Extracted . | . . . . Installed . | . . . . Triggered . | . . . . Machines | -11 -10 -10 -10 ---------- Run | Yrd Mat Min Sub Machines Disabled 1 | . 1 . . Max in Single Turn 1 | . 1 . . Machines Repaired . | . . . . Machines Dismantled . | . . . . Machines Sabotaged . | . . . . Overloaded Fab Kills . | . . . . Hacking | -11 -10 -10 -10 --------- Run | Yrd Mat Min Sub Machines Accessed 9 | . 9 . . Terminals 8 | . 8 . . Fabricators . | . . . . Repair Stations 1 | . 1 . . Recycling Units . | . . . . Scanalyzers . | . . . . Garrison Access . | . . . . Total Hacks 31 | . 31 . . Successful 10 | . 10 . . Failed 21 | . 21 . . Catastrophic 4 | . 4 . . Database Lockouts . | . . . . Manual 12 | . 12 . . Terminals 29 | . 29 . . Fabricators . | . . . . Repair Stations 2 | . 2 . . Recycling Units . | . . . . Scanalyzers . | . . . . Garrison Access . | . . . . Terminal Hacks 9 | . 9 . . Record 4 | . 4 . . Robot Analysis 1 | . 1 . . Terminal Index 1 | . 1 . . Dispatch Records 1 | . 1 . . Maintenance Status 1 | . 1 . . Hauler Manifests 1 | . 1 . . Fabricator Hacks . | . . . . Repair Station Hacks 1 | . 1 . . Refit 1 | . 1 . . Recycling Unit Hacks . | . . . . Scanalyzer . | . . . . Garrison Access Hacks . | . . . . Unauthorized Hacks . | . . . . Terminals . | . . . . Fabricators . | . . . . Repair Stations . | . . . . Recycling Units . | . . . . Scanalyzers . | . . . . Garrison Access . | . . . . Data Cores Recovered . | . . . . Used . | . . . . Hacking Detections 9 | . 9 . . Full Trace Events 2 | . 2 . . Feedback Events 1 | . 1 . . Corruption 1 | . 1 . . Feedback Blocked . | . . . . Robot Schematics Acquired . | . . . . Robots Built . | . . . . Authchips . | . . . . Time . | . . . . Total Robot Build Rating . | . . . . Part Schematics Acquired . | . . . . Parts Built . | . . . . Authchips . | . . . . Time . | . . . . Total Part Build Rating . | . . . . Part Studies Acquired . | . . . . Parts Repaired . | . . . . Time . | . . . . Parts Recycled . | . . . . Recycled Matter . | . . . . Retrieved Matter . | . . . . Retrieved Components . | . . . . Parts Scanalyzed . | . . . . Part Schematics Acquired . | . . . . Parts Damaged . | . . . . Bothacking | -11 -10 -10 -10 ------------ Run | Yrd Mat Min Sub Used RIF Installer . | . . . . Robots Hacked . | . . . . Non-combat . | . . . . Combat . | . . . . Robot Hacks Applied . | . . . . Relay Couplers Released . | . . . . Fabnet Peak Effective % . | . . . . Robots Rewired . | . . . . Allies Hacked . | . . . . Hacks Repelled . | . . . . Allies | -11 -10 -10 -10 -------- Run | Yrd Mat Min Sub Total Allies . | . . . . Largest Group . | . . . . Highest-Rated Group . | . . . . Highest-Rated Ally . | . . . . Total Orders . | . . . . Ally Attacks . | . . . . Total Damage . | . . . . Kills . | . . . . Allies Corrupted . | . . . . Allies Melted . | . . . . Intel | -11 -10 -10 -10 ------- Run | Yrd Mat Min Sub Active Infowar (turns) 1087 | 139 708 . 240 Terrain 34 | 34 . . . Seismic 1053 | 105 708 . 240 Robot Analysis Total 1 | . 1 . . Derelict Logs Recovered 2 | . . 1 1 Drone Launches . | . . . . Drone Recoveries . | . . . . Exploration | -11 -10 -10 -10 ------------- Run | Yrd Mat Min Sub Turns Passed 2521 | 208 1421 648 244 Spaces Moved 1629 | 97 891 478 163 Core 1 | 1 . . . Treads 366 | 93 273 . . Legs . | . . . . Wheels 1262 | 3 618 478 163 Hover . | . . . . Flight . | . . . . Fastest Speed 50 | 50 80 130 130 Average Speed 134 | 157 136 130 130 Slowest Speed 160 | 160 160 130 130 Overloaded Moves . | . . . . Propulsion Burnouts . | . . . . Robots Hopped . | . . . . Potential Cave-ins . | . . . . Cave-ins Triggered . | . . . . Exploration Rate (%) 53 | 6 96 97 13 Regions Visited 3 Branch Regions 2 Pre-discovered Areas . | . . . . Known Exits Taken 2 | . 1 1 . Unknown Exits Taken 1 | 1 . . . Scrap Searched 1 | . . 1 . Spaces Dug 14 | . 14 . . Terrain Destroyed 50 | . 35 . 15 Melee . | . . . . Projectile . | . . . . AOE 50 | . 35 . 15 Terrain Rammed . | . . . . Walls Destroyed . | . . . . Machines Disabled . | . . . . Actions | -11 -10 -10 -10 --------- Run | Yrd Mat Min Sub Total 1856 | 131 1037 504 184 Wait 90 | 2 52 24 12 Move 1626 | 96 890 477 163 Hop . | . . . . Pick Up 36 | 9 26 1 . Fast Attach 8 | 7 1 . . Attach 2 | 1 1 . . Detach 1 | 1 . . . Swap 29 | 1 25 1 2 Drop 16 | 3 12 1 . Fire 48 | 11 30 . 7 Melee . | . . . . Ram . | . . . . Kick . | . . . . Crush . | . . . . Escape Stasis . | . . . . Rewire . | . . . . Trap . | . . . . Miscellaneous . | . . . . Route ------- -11/Scrapyard -10/Materials (discovered 5 exits: *Mat x3 / *Min x2) -10/Mines (discovered 3 exits: *Mat x2 / *Sub) -10/Subcaves History --------- Turn | Location | Event 35 | -11/Scrapyard | Discovered new exit (range 15) 209 | -11/Scrapyard | Entered Materials 305 | -10/Materials | Build established: Mutant 521 | -10/Materials | Discovered new exit (range 9) 581 | -10/Materials | Discovered new exit (range 9) 730 | -10/Materials | Discovered new exit (range 8) 945 | -10/Materials | Discovered new exit (range 16) 965 | -10/Materials | Identified exit to Materials 1181 | -10/Materials | Discovered exit to Materials (range 5) 1309 | -10/Materials | Identified exit to Mines 1630 | -10/Materials | Entered Mines 1706 | -10/Mines | Learned Materials emergency access door positions 1715 | -10/Mines | Discovered exit to Materials (range 8) 1715 | -10/Mines | Discovered exit to Materials (range 11) 2210 | -10/Mines | Discovered new exit (range 9) 2222 | -10/Mines | Identified exit to Subcaves 2278 | -10/Mines | Entered Subcaves 2279 | -10/Subcaves | Approached by a straggling Scientist 2281 | -10/Subcaves | Learned Materials stockpile data 2519 | -10/Subcaves | Core integrity fell below 50% 2521 | -10/Subcaves | Core integrity fell below 20% 2522 | -10/Subcaves | Destroyed by S1-DG3(R) with Subdweller Shrapnel Launcher Last Messages --------------- Hvy. Assault Rifle fries itself beyond repair. Lgt. Treads fries itself beyond repair. Subatomizers dissect the Wheel. Tech Extrapolator violently self-destructs. L4-KF5(R) destroyed. Subatomizers dissect the Wheel. Acquired 35 matter. System corrupted: Component data lost. Subatomizers dissect the Wheel. Acquired 8 matter. Subatomizers dissect the Wheel. Acquired 10 matter. System corrupted: Matter fused (-8). System corrupted: FCS attempts to trigger Hvy. EM Pulse Gun. System corrupted: Hvy. EM Pulse Gun misfires. Grenade Launcher destroyed. Lgt. Ion Engine destroyed. Hvy. EM Pulse Gun destroyed. Com. Wheel destroyed. Map ----- +----------------------------------------------------+ | ?????????????????????????????????????????????????? | | ?????????????????????????????????????????????????? | | ?????????????????????????????????????????????????? | | ?????????????????????????????????????????????????? | | ?????????????????????????????????????????????????? | | ?????????????????????????????????????????????????? | | ?????????????????????????????????????????????????? | | ?????????????????????????????????????????????????? | | ?????????????????????????????????????????????????? | | ?????????????????????????????????????????????????? | | ???????????????????????????????""??[ ????????????? | | ???????????????????????????????""" ????????????? | | ????????????????? ?????##????? " " ????????????? | | ??????????????? #?#### ????? "RR ?????????????? | | ??????????????? ?# ?#### ??????????????? | | ???????????????# #?# ## # ##?????????????? | | ???????????????# ### #?????????????? | | ???????????????# # #?# #?????????????? | | ???????????????# ## ??????????????? | | ?????????????????# # ???????????????? | | ??????????###????# #????????????????? | | ??????????# ###??# # #????????????????? | | ???????????# ### ##???????????????? | | ???????????# # ; #???????????????? | | ???????????# ; #???????????????? | | ?????????### ; @ #???????????????? | | ?????????# ##???????????????? | | ??????????# #????????????????? | | ??????????# ##; ##????????????????? | | ????????# # ##### #####?????????????????? | | ????????# #??####?????????????????????? | | ????????## #####???????????????????????? | | ????????## ##??????????????????????? | | ???????# #??????????????????????? | | ???????## #??????????????????????? | | ????????# ## #??????????????????????? | | ????????## ## #??????????????????????? | | ?????????# ## #??????????????????????? | | ?????????##### #??????????????????????? | | ?????????????## ##??????????????????????? | | ??????????????##### ####???????????????????####? | | ??????????????????## #####????????????????### #? | | ??????????????????## # ##??????????####?# #? | | ?????????????????## #?????????## #?# #? | | ??????????###???## #### ##???????## ### ### | | ??????????# #??# ###?## #??###### # # ### | | ??????????# ### #???# ##?# # ## | | ??????????# ## ##???## #?# | | ??????????## #?### ##?# # #%= | | ???????????## ## #??# ##### | +----------------------------------------------------+ Best States ------------- Heat Dissipation 25 Energy Generation 10 Energy Capacity 125 Matter Stores 300 Matter Capacity 300 Sight Range 16 Terrain Scan Range 16 Terrain Scan Density 10 Evasion (%) 42 Recoil Reduction 2 Item Schematics ----------------- None Robot Schematics ------------------ None Fabricated ------------ Nothing Repaired ---------- Nothing Studied --------- None Alien Tech Used ----------------- None Achievements -------------- Shopping List Challenges ------------ None Game ------ Seed WeaponHackingMediator Manual? 0 Play Time 00:28:46 Cumulative 17.9 hours Start 2026.07.05 @ 16:44:59 End 2026.07.05 @ 17:16:10 Sessions 1 Manual Loads 0 Difficulty Rogue Special Mode None Game No. 8 Rogue 8 Adventurer 0 Explorer 0 Win Type - Total 0 Types 0/0/0/0/0/0/0/0/0/0 Lore% 12 Gallery% 20 Achievement% 17 Wizard Run 0 Options --------- Layout 1 ASCII 0 Keyboard 0 Movement Numpad Keybinds 0 Fullscreen 1 Font 36/Smallcaps Map View 55x38 Zoom Use 0% Tactical HUD 0 Map Filters NONE Filters NONE Steam 1 RUN: e837bf7c-f9a0-4e33-a526-d720f4e60206